bitfinex/quotes_BTCUSD_20240803
["timestamp","ask_amount","ask_price","bid_price","bid_amount"]
[1722707782165,2.68943231,60738.0,60737.0,0.76269073]
[1722707782390,2.68943231,60738.0,60737.0,0.75895285]
[1722707782659,2.71243231,60738.0,60737.0,0.75895285]
[1722707783914,2.71243231,60738.0,60737.0,0.67121928]
[1722707784750,2.71243231,60738.0,60737.0,0.62737821]
[1722707784985,2.8010974,60738.0,60737.0,0.62737821]
[1722707785145,2.82664184,60738.0,60737.0,0.62737821]
[1722707785376,2.82664184,60738.0,60737.0,0.5685088]
[1722707786439,2.71243231,60738.0,60737.0,0.5685088]
[1722707787052,2.71243231,60738.0,60737.0,0.1921912]
[1722707787053,3.04171531,60738.0,60737.0,0.1921912]
[1722707787227,3.15545061,60738.0,60737.0,0.01753939]
[1722707787648,0.164717,60710.0,60708.0,0.00157439]
[1722707787978,0.823477,60718.0,60717.0,0.47251164]
[1722707788182,0.2346,60719.0,60709.0,0.01324108]
[1722707788388,0.329413,60714.0,60707.0,0.074]
[1722707788563,0.164712,60712.0,60707.0,0.074]
[1722707788770,0.164715,60711.0,60707.0,0.074]
[1722707788979,0.164719,60710.0,60707.0,0.074]
[1722707789217,0.563987,60719.0,60707.0,0.074]
[1722707789218,0.329416,60714.0,60707.0,0.074]
[1722707789435,0.32942,60713.0,60709.0,0.001]
[1722707789641,0.164715,60711.0,60709.0,0.001]
[1722707789841,0.16472,60709.0,60707.0,0.074]
[1722707790070,0.164717,60710.0,60707.0,0.074]
[1722707790247,0.32942,60713.0,60707.0,0.076]
[1722707790489,0.164716,60711.0,60707.0,0.076]
[1722707790699,0.164715,60711.0,60707.0,0.076]
[1722707790873,0.329431,60711.0,60707.0,0.076]
[1722707791072,0.164718,60710.0,60707.0,0.076]
[1722707791283,0.164721,60709.0,60707.0,0.074]
[1722707791452,0.164718,60710.0,60707.0,0.074]
[1722707791675,0.164721,60709.0,60707.0,0.074]
[1722707792231,0.329411,60715.0,60707.0,0.074]
[1722707792427,0.329411,60715.0,60709.0,0.16472]
[1722707792428,0.164704,60715.0,60709.0,0.16472]
[1722707792686,0.164703,60716.0,60709.0,0.164719]
[1722707792839,0.188,60717.0,60710.0,0.164715]
[1722707793029,0.352699,60717.0,60711.0,0.164714]
[1722707793229,0.188,60717.0,60712.0,0.164711]
[1722707793443,0.005,60715.0,60712.0,0.164711]
[1722707793848,0.005,60715.0,60711.0,0.329426]
[1722707794061,0.005,60715.0,60713.0,0.164709]
[1722707794491,0.01040034,60719.0,60711.0,0.329426]
[1722707794686,0.164696,60718.0,60712.0,0.16471]
[1722707794894,0.164693,60719.0,60713.0,0.164708]
[1722707795093,0.164693,60719.0,60713.0,0.01321843]
[1722707795355,0.002,60715.0,60709.0,0.329438]
[1722707795554,0.002,60715.0,60714.0,0.50733177]
[1722707795756,0.002,60715.0,60714.0,0.823532]
[1722707796117,0.002,60715.0,60714.0,0.83674477]
[1722707796321,0.188,60729.0,60720.0,0.0722]
[1722707796533,0.188,60729.0,60725.0,0.164675]
[1722707796739,0.01721466,60744.0,60727.0,0.1656]
[1722707796932,0.47251164,60744.0,60741.0,0.164632]
[1722707797135,0.164626,60744.0,60737.0,0.164642]
[1722707797270,0.164626,60744.0,60731.0,0.4675]
[1722707797271,0.188,60738.0,60731.0,0.4675]
[1722707797475,0.188,60738.0,60731.0,0.63216]
[1722707797697,0.188,60738.0,60731.0,0.4675]
[1722707798109,0.188,60732.0,60731.0,0.4675]
[1722707798317,0.352657,60732.0,60731.0,0.4675]
[1722707798836,0.188,60732.0,60731.0,0.4685]
[1722707799208,0.681972,60732.0,60731.0,0.4675]
[1722707799408,0.681972,60732.0,60710.0,0.47251164]
[1722707799409,1.24749818,60732.0,60712.0,0.4675]
[1722707799610,0.188,60722.0,60717.0,0.00157439]
[1722707800037,0.188,60722.0,60712.0,0.4675]
[1722707800038,0.164709,60713.0,60712.0,0.4675]
[1722707800237,0.188,60713.0,60706.0,0.0722]
[1722707800493,0.329428,60712.0,60706.0,0.0722]
[1722707800698,0.164715,60711.0,60707.0,0.00157439]
[1722707801117,0.164712,60712.0,60707.0,0.00157439]
[1722707801337,0.164722,60708.0,60707.0,0.00157439]
[1722707801530,0.164728,60706.0,60705.0,0.00157439]
[1722707801961,0.164728,60706.0,60704.0,0.000913]
[1722707801962,0.164731,60705.0,60704.0,0.000913]
[1722707802172,0.164729,60706.0,60704.0,0.000913]
[1722707802389,0.494193,60705.0,60704.0,0.000913]
[1722707802585,0.823655,60705.0,60704.0,0.000913]
[1722707803005,1.31057624,60705.0,60704.0,0.000913]
[1722707803210,1.41057624,60705.0,60704.0,0.000913]
[1722707803413,1.42057624,60705.0,60704.0,0.000913]
[1722707804142,1.41057624,60705.0,60704.0,0.000913]
[1722707804344,1.42057624,60705.0,60704.0,0.000913]
[1722707804607,1.43457624,60705.0,60704.0,0.000913]
[1722707804812,2.04387314,60705.0,60704.0,0.000913]
[1722707805406,1.93283824,60705.0,60704.0,0.000913]
[1722707805644,2.04387281,60705.0,60704.0,0.000913]
[1722707805850,2.04387281,60705.0,60703.0,0.00218018]
[1722707805851,1.512601,60704.0,60703.0,0.001]
[1722707806055,1.90409481,60704.0,60703.0,0.001]
[1722707806676,1.18319,60701.0,60700.0,4e-05]
[1722707806901,0.72925,60698.0,60696.0,0.00926]
[1722707807108,1.75674381,60698.0,60696.0,0.00926]
[1722707807518,1.64570924,60698.0,60696.0,0.00926]
[1722707808084,1.65970924,60698.0,60696.0,0.00926]
[1722707808453,1.66970924,60698.0,60696.0,0.00926]
[1722707808908,1.67370924,60698.0,60697.0,0.01027]
[1722707809111,0.95175,60698.0,60697.0,0.01027]
[1722707809473,0.60825,60698.0,60697.0,0.01027]
[1722707809689,0.93775,60698.0,60697.0,0.01027]
[1722707809898,0.62225,60698.0,60697.0,0.01027]
[1722707810353,0.19275,60698.0,60697.0,0.01027]
[1722707810565,0.52225,60698.0,60697.0,0.01027]
[1722707810766,0.85175,60698.0,60697.0,0.01027]
[1722707811017,0.86257658,60698.0,60697.0,0.02136088]
[1722707811215,0.53307658,60698.0,60697.0,0.02136088]
[1722707811423,0.86257658,60698.0,60697.0,0.02136088]
[1722707811573,0.84857658,60698.0,60697.0,0.02036088]
[1722707811979,0.86257658,60698.0,60697.0,0.02136088]
[1722707812316,0.53307658,60698.0,60697.0,0.02036088]
[1722707812437,0.51907658,60698.0,60697.0,0.02036088]
[1722707812646,0.85757658,60698.0,60697.0,0.01027]
[1722707813049,0.83457658,60698.0,60697.0,0.00927]
[1722707813467,0.85057658,60698.0,60697.0,0.01027]
[1722707813897,0.84457658,60698.0,60697.0,0.01027]
[1722707814105,0.85057658,60698.0,60697.0,0.01027]
[1722707814380,0.84457658,60698.0,60697.0,0.01027]
[1722707814704,0.84157658,60698.0,60697.0,0.00927]
[1722707815025,0.84157658,60698.0,60697.0,0.01027]
[1722707815153,0.85057658,60698.0,60697.0,0.01027]
[1722707815589,1.40607658,60698.0,60697.0,0.00927]
[1722707815789,1.08657658,60698.0,60697.0,0.01027]
[1722707816278,1.09657658,60698.0,60697.0,0.01027]
[1722707816481,1.41607658,60698.0,60697.0,0.01027]
[1722707817034,1.74143582,60698.0,60697.0,0.01027]
[1722707817624,1.75143582,60698.0,60697.0,0.01027]
[1722707818298,1.74143582,60698.0,60697.0,0.01027]
[1722707818902,2.08093582,60698.0,60697.0,0.01027]
[1722707819117,1.84143582,60698.0,60697.0,0.00130524]
[1722707819523,1.85143582,60698.0,60697.0,0.00130524]
[1722707819927,0.853762,60697.0,60696.0,0.00856338]
[1722707820178,0.494314,60690.0,60679.0,0.01084439]
[1722707820437,1.67585924,60690.0,60680.0,0.00157439]
[1722707820662,2.50284524,60690.0,60680.0,0.00157439]
[1722707820887,2.6132422,60690.0,60679.0,0.00927]
[1722707821382,2.2866992,60690.0,60679.0,0.08802194]
[1722707821606,2.17630224,60690.0,60679.0,0.08802194]
[1722707821816,2.19030224,60690.0,60679.0,0.08802194]
[1722707822026,2.14330224,60690.0,60679.0,0.08802194]
[1722707822243,1.64585924,60690.0,60679.0,0.15732194]
[1722707822444,1.64585924,60690.0,60680.0,0.00157439]
[1722707823488,1.65985924,60690.0,60680.0,0.00157439]
[1722707823910,2.22080224,60690.0,60679.0,0.01084439]
[1722707824115,2.34503378,60690.0,60679.0,0.00927]
[1722707824330,0.01,60682.0,60679.0,0.00927]
[1722707824545,0.494437,60675.0,60671.0,0.00927]
[1722707824751,0.98152124,60675.0,60671.0,0.00927]
[1722707824956,1.31114624,60675.0,60671.0,0.00927]
[1722707825165,1.41114624,60675.0,60671.0,0.00927]
[1722707825586,1.42114624,60675.0,60671.0,0.00927]
[1722707825792,1.41114624,60675.0,60671.0,0.00927]
[1722707826000,1.42114624,60675.0,60671.0,0.00927]
[1722707826638,1.41114624,60675.0,60671.0,0.00927]
[1722707826838,1.42514624,60675.0,60671.0,0.00927]
[1722707827483,0.164872,60653.0,60652.0,0.0779]
[1722707827726,0.494616,60653.0,60652.0,0.0779]
[1722707827933,0.235,60658.0,60652.0,0.08543565]
[1722707828107,0.164872,60653.0,60652.0,0.0729]
[1722707828361,0.494616,60653.0,60652.0,0.08043565]
[1722707828577,0.494632,60651.0,60650.0,4e-05]
[1722707828781,0.329736,60655.0,60650.0,4e-05]
[1722707828988,0.494632,60651.0,60650.0,4e-05]
[1722707830277,1.067387,60651.0,60650.0,4e-05]
[1722707830495,1.076387,60651.0,60650.0,4e-05]
[1722707831335,1.068387,60651.0,60650.0,4e-05]
[1722707831540,1.075387,60651.0,60650.0,4e-05]
[1722707831745,1.23284624,60651.0,60650.0,4e-05]
[1722707831952,1.66260124,60651.0,60650.0,4e-05]
[1722707832358,1.83200124,60651.0,60650.0,4e-05]
[1722707832564,2.37211141,60651.0,60650.0,4e-05]
[1722707832769,1.513996,60647.0,60646.0,0.00927]
[1722707832953,1.75145524,60647.0,60646.0,0.00927]
[1722707833190,1.79758435,60647.0,60646.0,0.00927]
[1722707833394,1.45780735,60647.0,60646.0,0.00927]
[1722707833601,1.41167824,60647.0,60646.0,0.00927]
[1722707834044,1.44167824,60647.0,60646.0,0.00927]
[1722707834246,1.46780735,60647.0,60646.0,0.00927]
[1722707834460,1.44967824,60647.0,60646.0,0.00927]
[1722707834864,1.94281041,60647.0,60646.0,0.00927]
[1722707835068,1.78845524,60647.0,60646.0,0.00927]
[1722707835275,1.83458435,60647.0,60646.0,0.00927]
[1722707835697,1.81158435,60647.0,60646.0,0.00927]
[1722707835899,1.79758435,60647.0,60646.0,0.00927]
[1722707836121,1.75145524,60647.0,60646.0,0.00927]
[1722707836324,1.78545524,60647.0,60646.0,0.00927]
[1722707836736,1.94814493,60647.0,60646.0,0.00927]
[1722707836885,1.80845524,60647.0,60646.0,0.00927]
[1722707837090,1.78845524,60647.0,60646.0,0.00927]
[1722707837290,1.86858435,60647.0,60646.0,0.00927]
[1722707837643,1.86858435,60647.0,60628.0,0.00928]
[1722707837644,0.494746,60637.0,60628.0,0.00928]
[1722707837852,1.87669824,60637.0,60628.0,0.00928]
[1722707838058,1.88669824,60637.0,60628.0,0.00928]
[1722707838311,1.98669824,60637.0,60628.0,0.00928]
[1722707838527,0.824687,60629.0,60628.0,0.00928]
[1722707838730,1.54702124,60629.0,60628.0,0.00928]
[1722707838934,1.64702124,60629.0,60628.0,0.00928]
[1722707840291,0.329862,60632.0,60628.0,0.10568]
[1722707840613,0.494755,60636.0,60635.0,0.07875194]
[1722707840822,0.329854,60633.0,60629.0,0.07875194]
[1722707841024,0.824672,60630.0,60629.0,0.07875194]
[1722707841224,0.824672,60630.0,60628.0,0.00928]
[1722707841225,0.494812,60629.0,60628.0,0.00928]
[1722707841459,1.31202124,60629.0,60628.0,0.00928]
[1722707841658,1.41202124,60629.0,60628.0,0.00928]
[1722707843353,1.08214624,60629.0,60628.0,0.00928]
[1722707843550,1.09614624,60629.0,60628.0,0.00928]
[1722707844162,0.235,60637.0,60628.0,0.00928]
[1722707844367,0.329736,60655.0,60636.0,0.164917]
[1722707844368,0.164894,60645.0,60636.0,0.164917]
[1722707844595,0.235,60651.0,60637.0,0.00157439]
[1722707844798,0.235,60651.0,60641.0,0.07875194]
[1722707845013,0.235,60651.0,60642.0,0.00157439]
[1722707845014,0.164899,60643.0,60642.0,0.00157439]
[1722707845514,0.24573112,60651.0,60636.0,0.08032633]
[1722707845515,0.164915,60637.0,60636.0,0.08032633]
[1722707845805,0.235,60644.0,60635.0,0.0748]
[1722707845806,0.164918,60636.0,60635.0,0.1707]
[1722707846018,0.494755,60636.0,60635.0,0.1677]
[1722707846416,0.494755,60636.0,60629.0,0.07875194]
[1722707846417,0.564834,60637.0,60629.0,0.0959]
[1722707846624,0.164932,60631.0,60629.0,0.0959]
[1722707846834,0.329846,60635.0,60630.0,0.08032633]
[1722707847045,0.164924,60634.0,60630.0,0.08032633]
[1722707847233,0.32985,60634.0,60630.0,0.08032633]
[1722707847435,0.494796,60631.0,60630.0,0.00157439]
[1722707847568,0.15745924,60636.0,60630.0,0.00157439]
[1722707847768,0.15745924,60636.0,60630.0,0.08032633]
[1722707847983,0.235,60644.0,60630.0,0.08904132]
[1722707848185,0.164921,60635.0,60630.0,0.09394158]
[1722707848395,0.32985,60634.0,60630.0,0.09394158]
[1722707848615,0.25745924,60643.0,60630.0,0.09394158]
[1722707848616,0.494796,60631.0,60630.0,0.01318964]
[1722707848812,0.331841,60636.0,60630.0,0.09036719]
[1722707849013,0.164927,60633.0,60631.0,0.00157439]
[1722707849316,0.001,60635.0,60631.0,0.00157439]
[1722707849514,0.001,60635.0,60633.0,0.00157439]
[1722707849738,0.164916,60637.0,60633.0,0.00157439]
[1722707849959,0.329807,60642.0,60633.0,0.00157439]
[1722707850257,0.329807,60642.0,60630.0,0.07875194]
[1722707850258,0.164907,60640.0,60639.0,0.00157439]
[1722707850436,0.264907,60640.0,60639.0,0.00157439]
[1722707850637,0.1,60640.0,60639.0,0.00157439]
[1722707850837,0.01043389,60646.0,60640.0,0.0748]
[1722707850838,0.164895,60645.0,60640.0,0.0748]
[1722707851135,0.329767,60649.0,60640.0,0.0748]
[1722707851136,0.164883,60649.0,60642.0,0.0959]
[1722707851325,0.3174,60660.0,60642.0,0.0959]
[1722707851326,0.01033086,60651.0,60648.0,0.07875194]
[1722707851468,0.164872,60653.0,60649.0,0.00157439]
[1722707851670,0.16487,60654.0,60649.0,0.01310451]
[1722707851878,0.164872,60653.0,60649.0,0.01310451]
[1722707852079,0.16487,60654.0,60649.0,0.01310451]
[1722707852300,0.329739,60654.0,60649.0,0.01310451]
[1722707852500,0.49464,60650.0,60649.0,0.01310451]
[1722707852729,0.49464,60650.0,60643.0,0.00157439]
[1722707852730,0.494689,60644.0,60643.0,0.00157439]
[1722707852929,0.494706,60642.0,60641.0,0.00157439]
[1722707853103,0.235,60644.0,60637.0,0.00157439]
[1722707853104,0.494739,60638.0,60637.0,0.00157439]
[1722707853528,0.494739,60638.0,60637.0,0.01316126]
[1722707853742,0.164915,60637.0,60636.0,0.0959]
[1722707854290,0.164915,60637.0,60636.0,0.0115916]
[1722707854291,0.824577,60637.0,60636.0,0.0115916]
[1722707854658,0.164927,60633.0,60631.0,0.00157439]
[1722707854819,0.003,60638.0,60636.0,0.0115916]
[1722707855023,0.003,60638.0,60637.0,0.08032633]
[1722707855024,0.497739,60638.0,60637.0,0.08032633]
[1722707855244,0.497739,60638.0,60637.0,0.07875194]
[1722707855645,0.167913,60638.0,60637.0,0.07875194]
[1722707855846,0.497739,60638.0,60637.0,0.07875194]
[1722707856055,0.167913,60638.0,60637.0,0.07875194]
[1722707856321,0.003,60638.0,60637.0,0.07875194]
[1722707856540,0.004,60638.0,60637.0,0.07875194]
[1722707856742,0.004,60638.0,60637.0,1.24307505]
[1722707856951,0.006,60638.0,60637.0,1.69526414]
[1722707857155,0.006,60638.0,60637.0,1.71940498]
[1722707857364,0.006,60638.0,60637.0,1.57290605]
[1722707857365,0.008,60638.0,60637.0,1.57290605]
[1722707857585,0.008,60638.0,60637.0,1.24307505]
[1722707857790,0.004,60638.0,60637.0,0.91324405]
[1722707857995,0.32976,60651.0,60639.0,0.329818]
[1722707858206,0.005,60638.0,60637.0,0.3639693]
[1722707858411,0.005,60638.0,60637.0,0.26603881]
[1722707858613,0.495739,60638.0,60637.0,0.005]
[1722707858834,0.825565,60638.0,60637.0,0.005]
[1722707859007,0.826565,60638.0,60637.0,0.005]
[1722707859242,0.826565,60638.0,60632.0,0.00157439]
[1722707859243,0.164924,60634.0,60632.0,0.00157439]
[1722707859420,0.164922,60635.0,60631.0,0.1707]
[1722707859650,0.164922,60635.0,60631.0,0.0748]
[1722707859828,0.329837,60636.0,60631.0,0.0748]
[1722707859829,0.329848,60634.0,60631.0,0.0748]
[1722707860027,0.164926,60634.0,60631.0,0.0748]
[1722707860265,0.329875,60629.0,60628.0,0.00928]
[1722707860468,0.242,60638.0,60628.0,0.00928]
[1722707860469,0.164935,60630.0,60628.0,0.00928]
[1722707860672,0.329856,60633.0,60628.0,0.00928]
[1722707860673,0.329856,60633.0,60629.0,0.00157439]
[1722707860878,0.329837,60636.0,60631.0,0.001]
[1722707861081,0.15745924,60637.0,60628.0,0.00928]
[1722707861082,0.329845,60635.0,60628.0,0.00928]
[1722707861283,0.164929,60632.0,60628.0,0.00928]
[1722707861699,0.001,60635.0,60628.0,0.00928]
[1722707861700,0.001,60635.0,60629.0,0.07875194]
[1722707861923,0.01031003,60638.0,60632.0,0.164928]
[1722707862126,0.01031003,60638.0,60629.0,0.07875194]
[1722707862127,0.17522403,60638.0,60631.0,0.164931]
[1722707862341,0.001,60635.0,60632.0,0.00157439]
[1722707862800,0.1,60642.0,60632.0,0.00157439]
[1722707862801,0.17537351,60639.0,60632.0,0.164928]
[1722707863024,0.001,60635.0,60633.0,0.00157439]
[1722707863240,0.001,60635.0,60630.0,0.00157439]
[1722707863480,0.164924,60634.0,60628.0,0.08803194]
[1722707863690,0.164928,60633.0,60632.0,0.001]
[1722707863894,0.001,60635.0,60628.0,0.08803194]
[1722707864107,0.329848,60634.0,60629.0,0.00157439]
[1722707864317,0.494771,60634.0,60633.0,0.001]
[1722707865180,0.824618,60634.0,60633.0,0.001]
[1722707865382,0.49477,60634.0,60633.0,0.001]
[1722707865585,0.824617,60634.0,60633.0,0.001]
[1722707865999,1.154464,60634.0,60633.0,0.001]
[1722707866202,1.154464,60634.0,60628.0,0.00928]
[1722707866203,0.824687,60629.0,60628.0,0.00928]
[1722707866414,1.31202124,60629.0,60628.0,0.00928]
[1722707866621,1.31202124,60629.0,60628.0,0.01228]
[1722707866828,1.42263172,60629.0,60628.0,0.00928]
[1722707867450,1.42280896,60629.0,60628.0,0.00928]
[1722707867669,1.32602124,60629.0,60628.0,0.00928]
[1722707867875,1.88069302,60629.0,60628.0,0.00928]
[1722707868075,1.86669302,60629.0,60628.0,0.00928]
[1722707868281,1.85269302,60629.0,60628.0,0.00928]
[1722707868695,1.86569302,60629.0,60628.0,0.00928]
[1722707869105,1.85273694,60629.0,60628.0,0.00928]
[1722707869320,1.86573694,60629.0,60628.0,0.00928]
[1722707869524,1.87973694,60629.0,60628.0,0.00928]
[1722707869731,1.86673694,60629.0,60628.0,0.00928]
[1722707869940,1.55086194,60629.0,60628.0,0.00928]
[1722707870531,1.88073694,60629.0,60628.0,0.00768564]
[1722707870740,1.93625141,60629.0,60628.0,0.00159437]
[1722707870902,1.90361978,60629.0,60628.0,0.00159437]
[1722707871121,1.55074478,60629.0,60628.0,0.00159437]
[1722707871280,1.88061978,60629.0,60628.0,0.00159437]
[1722707871483,1.86661978,60629.0,60628.0,0.00159437]
[1722707871682,1.55074478,60629.0,60628.0,0.00159437]
[1722707871887,1.44002124,60629.0,60628.0,0.00159437]
[1722707872094,0.824877,60615.0,60614.0,0.00157439]
[1722707872308,0.44585924,60629.0,60613.0,0.00928]
[1722707872309,0.164978,60614.0,60613.0,0.00928]
[1722707872525,0.494934,60614.0,60613.0,0.00928]
[1722707872734,1.80266124,60614.0,60613.0,0.00928]
[1722707872954,0.49504,60601.0,60596.0,0.09793049]
[1722707873156,0.49504,60601.0,60593.0,0.09793049]
[1722707873157,0.98252624,60601.0,60593.0,0.09793049]
[1722707873373,1.08252624,60601.0,60598.0,0.00157439]
[1722707873575,1.08252624,60601.0,60589.0,0.00928]
[1722707874005,0.25745924,60601.0,60590.0,0.07875194]
[1722707874202,0.25745924,60601.0,60600.0,0.00404]
[1722707874203,0.42347224,60601.0,60600.0,0.00404]
[1722707874416,0.25845924,60601.0,60600.0,4e-05]
[1722707874658,0.42347224,60601.0,60600.0,4e-05]
[1722707874878,1.11152624,60601.0,60600.0,4e-05]
[1722707875092,0.78049924,60601.0,60600.0,4e-05]
[1722707875415,0.27145924,60601.0,60600.0,4e-05]
[1722707875546,0.29621884,60601.0,60600.0,4e-05]
[1722707875728,0.0387596,60601.0,60600.0,4e-05]
[1722707875962,0.028,60601.0,60600.0,0.15944]
[1722707876384,0.042,60601.0,60600.0,0.15944]
[1722707876585,0.042,60601.0,60600.0,0.324456]
[1722707876586,0.014,60601.0,60600.0,0.324456]
[1722707876789,0.0697,60618.0,60603.0,0.330015]
[1722707877094,0.15745924,60617.0,60612.0,0.07875194]
[1722707877695,0.15745924,60617.0,60613.0,0.01203791]
[1722707877963,0.329948,60616.0,60605.0,0.07875194]
[1722707878136,0.15745924,60615.0,60605.0,0.07875194]
[1722707878343,0.164984,60612.0,60606.0,0.01207768]
[1722707878505,0.15745924,60611.0,60606.0,0.01207768]
[1722707878704,0.15745924,60611.0,60598.0,0.07875194]
[1722707878705,0.15745924,60611.0,60607.0,0.07875194]
[1722707878905,0.32244624,60611.0,60607.0,0.07875194]
[1722707879158,0.15745924,60611.0,60598.0,0.07875194]
[1722707879356,0.1604,60609.0,60600.0,4e-05]
[1722707879562,0.235,60605.0,60601.0,0.0121061]
[1722707879908,0.165013,60601.0,60600.0,4e-05]
[1722707880112,0.15745924,60601.0,60600.0,4e-05]
[1722707880309,1.08252624,60601.0,60600.0,4e-05]
[1722707880428,0.25745924,60601.0,60600.0,4e-05]
[1722707880642,0.42247224,60601.0,60600.0,4e-05]
[1722707880859,0.25745924,60601.0,60600.0,4e-05]
[1722707881067,0.005,60601.0,60600.0,0.15944]
[1722707881297,0.005,60601.0,60600.0,0.99663378]
[1722707881500,0.008,60601.0,60600.0,0.99663378]
[1722707881712,0.008,60601.0,60600.0,0.33656778]
[1722707881917,0.003,60601.0,60600.0,0.17155178]
[1722707882118,0.003,60601.0,60600.0,0.66660078]
[1722707882330,0.003,60601.0,60600.0,0.01215178]
[1722707882585,0.16045924,60601.0,60600.0,0.01215178]
[1722707883029,0.15745924,60601.0,60600.0,4e-05]
[1722707883365,0.15745924,60601.0,60600.0,0.00404]
[1722707883366,0.16245924,60601.0,60600.0,0.00404]
[1722707883498,0.16345924,60601.0,60600.0,0.00404]
[1722707883750,0.15845924,60601.0,60600.0,4e-05]
[1722707883927,0.16245924,60601.0,60600.0,4e-05]
[1722707884128,0.16645924,60601.0,60600.0,4e-05]
[1722707884627,0.16545924,60601.0,60600.0,4e-05]
[1722707884882,1.16472624,60601.0,60600.0,4e-05]
[1722707885105,0.43545924,60601.0,60600.0,4e-05]
[1722707885312,0.27145924,60601.0,60600.0,4e-05]
[1722707885755,0.28180563,60601.0,60600.0,4e-05]
[1722707885980,0.79984563,60601.0,60600.0,4e-05]
[1722707886225,1.54088419,60601.0,60600.0,4e-05]
[1722707886435,1.71488419,60601.0,60600.0,4e-05]
[1722707886640,1.71488419,60601.0,60597.0,0.1624056]
[1722707886641,1.16515,60598.0,60597.0,0.1624056]
[1722707886845,1.16515,60598.0,60583.0,0.00929]
[1722707886846,0.165046,60589.0,60583.0,0.00929]
[1722707887050,0.825272,60586.0,60583.0,0.00929]
[1722707887261,0.1,60589.0,60583.0,0.00929]
[1722707887677,0.25745924,60588.0,60586.0,0.01219137]
[1722707887884,0.25745924,60588.0,60583.0,0.00929]
[1722707888093,0.25745924,60588.0,60587.0,0.07875194]
[1722707888294,0.25745924,60588.0,60583.0,0.00929]
[1722707888295,0.014,60586.0,60583.0,0.00929]
[1722707888501,0.25745924,60588.0,60583.0,0.00929]
[1722707888708,0.495163,60586.0,60583.0,0.00929]
[1722707888908,0.98273124,60586.0,60583.0,0.00929]
[1722707889127,1.08273124,60586.0,60583.0,0.00929]
[1722707889337,1.64784024,60586.0,60583.0,0.00929]
[1722707889552,1.82819541,60586.0,60583.0,0.00929]
[1722707889771,2.16494924,60586.0,60583.0,0.00929]
[1722707890021,2.17894924,60586.0,60583.0,0.00929]
[1722707890236,2.17894924,60586.0,60585.0,0.00372002]
[1722707890461,0.165103,60568.0,60564.0,0.18278237]
[1722707890679,1.48197624,60568.0,60564.0,0.18278237]
[1722707890890,0.679334,60565.0,60564.0,0.08758666]
[1722707891100,1.59723924,60565.0,60564.0,0.08758666]
[1722707891350,1.47930531,60565.0,60564.0,0.08758666]
[1722707891576,1.53183902,60565.0,60564.0,0.08758666]
[1722707891780,1.43623924,60565.0,60564.0,0.08758666]
[1722707892205,1.08301624,60565.0,60564.0,0.08758666]
[1722707892417,1.44623924,60565.0,60564.0,0.08758666]
[1722707892625,1.50850568,60565.0,60564.0,0.08758666]
[1722707892844,1.82472868,60565.0,60564.0,0.08758666]
[1722707893055,1.77646224,60565.0,60564.0,0.08758666]
[1722707893262,0.82575,60551.0,60550.0,0.00204]
[1722707893468,0.65290924,60551.0,60550.0,0.00204]
[1722707893701,0.25745924,60551.0,60550.0,0.00204]
[1722707893922,0.1,60564.0,60550.0,0.167192]
[1722707894141,0.47251164,60561.0,60554.0,0.0724]
[1722707894349,0.25745924,60560.0,60555.0,0.07875194]
[1722707894756,0.495408,60556.0,60555.0,0.07875194]
[1722707894969,0.1,60560.0,60550.0,0.00204]
[1722707895198,0.1,60560.0,60558.0,0.07875194]
[1722707895199,0.65284424,60559.0,60558.0,0.07875194]
[1722707895400,0.1,60559.0,60558.0,0.07875194]
[1722707895817,0.02444031,60564.0,60558.0,0.07875194]
[1722707896033,0.17145924,60564.0,60559.0,0.0724]
[1722707896253,0.014,60564.0,60559.0,0.0724]
[1722707896490,0.165093,60572.0,60564.0,0.165114]
[1722707896714,0.165093,60572.0,60561.0,0.330244]
[1722707896715,0.15745924,60571.0,60566.0,0.07875194]
[1722707896921,0.165114,60565.0,60560.0,0.0892]
[1722707897131,0.165125,60560.0,60559.0,0.0724]
[1722707897340,0.165125,60560.0,60558.0,0.07875194]
[1722707897551,0.48769024,60564.0,60558.0,0.07875194]
[1722707897552,0.009,60559.0,60558.0,0.07875194]
[1722707897989,0.48769024,60564.0,60558.0,0.07875194]
[1722707897990,0.165122,60562.0,60558.0,0.07875194]
[1722707898196,0.15745924,60564.0,60558.0,0.07875194]
[1722707898402,0.165128,60559.0,60558.0,0.07875194]
[1722707898604,0.330269,60557.0,60553.0,0.1616]
[1722707898816,0.165135,60557.0,60553.0,0.1616]
[1722707899048,0.165138,60556.0,60553.0,0.1616]
[1722707899246,0.165131,60558.0,60553.0,0.1616]
[1722707899454,0.009,60560.0,60553.0,0.1616]
[1722707899666,0.009,60560.0,60559.0,0.07875194]
[1722707899869,0.009,60560.0,60559.0,0.57413594]
[1722707900297,0.0106363,60566.0,60559.0,0.07875194]
[1722707900531,0.009,60562.0,60559.0,0.09109689]
[1722707900747,0.02,60562.0,60559.0,0.09109689]
[1722707900949,0.011,60562.0,60559.0,0.01234495]
[1722707901154,0.004,60560.0,60559.0,0.01234495]
[1722707901367,0.011,60560.0,60553.0,0.1616]
[1722707901588,0.011,60560.0,60559.0,0.09109689]
[1722707901800,0.172125,60560.0,60559.0,0.07875194]
[1722707902004,0.330245,60562.0,60559.0,0.09109689]
[1722707902005,0.007,60562.0,60559.0,0.09109689]
[1722707902216,0.15745924,60561.0,60559.0,0.07875194]
[1722707902436,0.009,60562.0,60561.0,0.165122]
[1722707902656,0.009,60562.0,60561.0,0.908012]
[1722707902935,0.009,60562.0,60561.0,1.85419481]
[1722707903149,0.01,60607.0,60561.0,1.85419481]
[1722707903152,0.0928,60601.0,60578.0,0.330151]
[1722707903363,0.330072,60593.0,60582.0,0.165065]
[1722707903563,0.01070854,60594.0,60578.0,0.09781241]
[1722707903564,0.330066,60594.0,60579.0,0.17730217]
[1722707903772,0.3301,60588.0,60583.0,0.01236826]
[1722707903979,0.330094,60589.0,60579.0,0.165072]